Cogmind - Beta 14 @@@ ROGUE MODE // 2024.10.24 @ 00:33:06 Player: muppy Result: Self-destructed Performance ------------- Evolutions (2) 1000 Regions Visited (3) 600 Robots Destroyed (27) 135 Value Destroyed (746) 746 Prototype IDs (3) 60 Alien Tech Used (0) 0 Bonus (254) 254 TOTAL SCORE: 2795 Bonus ------- Pacifist 200 High Alert Combat Kills 54 Cogmind --------- Core Integrity 417/550 Matter 8/300 Energy 280/280 System Corruption 0% Temperature Cool (0) Movement Treading (156) Location -8/Materials Parts ------- > --- POWER (1) -------- Heavy Ion Engine > --- PROPULSION (4) --- Light Treads Light Treads Light Treads Advanced Treads > --- UTILITY (4) ------ Small Storage Unit Advanced Visual Processing Unit Improved Weapon Shielding > --- WEAPON (2) ------- Precision Beam Rifle Heavy Assault Rifle > --- INVENTORY (8) ---- Heat Sink Light Armor Plating Assault Rifle Datajack Peak State ------------ > --- POWER ------------ Ion Engine > --- PROPULSION ------- Airjet Airjet Airjet > --- UTILITY ---------- Small Storage Unit Visual Processing Unit Power Shielding > --- WEAPON ----------- Precision Beam Rifle Precision Beam Rifle > --- INVENTORY -------- Heat Sink Assault Rifle Grenade Launcher Rocket Launcher Datajack [Rating: 22] Favorites ----------- Power Ion Engine Engine Ion Engine Propulsion Aluminum Leg Treads Light Treads Leg Aluminum Leg Hover Unit Airjet Utility Small Storage Unit Device Heat Sink Storage Small Storage Unit Processor Visual Processing Unit Protection Power Shielding Weapon Assault Rifle Energy Gun Precision Beam Rifle Ballistic Gun Assault Rifle Launcher Grenade Launcher Special Melee Weapon Datajack Build | -11 -10 -9 -8 ------- Run | Yrd Mat Mat Mat Slots Evolved 4 | . . 2 2 Power . | . . . . Propulsion 2 | . . 1 1 Utility 2 | . . 1 1 Weapon . | . . . . Parts Attached 46 | 6 1 24 15 Power 4 | 1 . 2 1 Engine 4 | 1 . 2 1 Core . | . . . . Reactor . | . . . . Propulsion 13 | 2 . 6 5 Treads 5 | . . 1 4 Leg 4 | 2 . 2 . Wheel . | . . . . Hover 4 | . . 3 1 Flight . | . . . . Utility 7 | 1 1 1 4 Device 1 | . . . 1 Storage 1 | 1 . . . Processor 2 | . . 1 1 Hackware . | . . . . Protection 3 | . 1 . 2 Artifact . | . . . . Weapon 22 | 2 . 15 5 Energy Gun 4 | . . 3 1 Energy Cannon . | . . . . Ballistic Gun 11 | 2 . 5 4 Ballistic Cannon . | . . . . Launcher 6 | . . 6 . Special Weapon . | . . . . Impact Weapon . | . . . . Slashing Weapon . | . . . . Piercing Weapon . | . . . . Special Melee Weapon 1 | . . 1 . Unidentified Prototypes 2 | . . 2 . Parts Lost 9 | . . 6 3 Power 1 | . . 1 . Propulsion 4 | . . 3 1 Utility 1 | . . . 1 Weapon 3 | . . 2 1 Highest Loss Streak 4 | . . 4 1 To Critical Strikes . | . . . . Average Slot Usage (%) 83 | . 87 87 76 Engine 10 | . 14 10 9 Treads 3 | . . . 10 Leg 10 | . 28 9 . Hover 7 | . . 13 4 Device 2 | . . . 7 Storage 10 | . 14 11 9 Processor 7 | . . 9 9 Protection 8 | . 2 11 9 Energy Gun 2 | . . 4 . Ballistic Gun 17 | . 28 12 17 Launcher 1 | . . 3 . Peak Build Rating 22 | 6 7 22 22 Average Rating 13 | 3 6 13 17 On Entrance 4 | . 6 7 6 Naked Turns . | . . . . Heaviest Build 22 | 13 14 21 22 Greatest Support 82 | 20 20 33 82 Greatest Overweight (x) 6 | . . 4 6 Average Overweight (x) . | . . . 1 Largest Inventory Capacity 8 | 8 8 8 8 Average Capacity 7 | 6 8 8 8 Most Carried 8 | 5 3 8 6 Average Carried 3 | 1 1 5 3 Final Capacity 8 | 8 8 8 8 Final Carried 6 | . 2 6 4 Class Distribution -------------------- 94% | Mutant 5% | Scavenger-Mutant Dominant Class ---------------- Mutant | -10/Materials Mutant | -9/Materials Mutant | -8/Materials Resources | -11 -10 -9 -8 ----------- Run | Yrd Mat Mat Mat Matter Collected 719 | 219 . 324 176 Remotely . | . . . . Salvage Created 783 | . . 611 172 Parts 63 | . . 46 17 Haulers Intercepted 1 | . . 1 . Recyclers Shooed 1 | . . . 1 Parts Field Recycled . | . . . . Retrieved Matter . | . . . . Parts Self-Destructed . | . . . . Prevented . | . . . . Kills | -11 -10 -9 -8 ------- Run | Yrd Mat Mat Mat Combat Hostiles Destroyed 20 | . . 17 3 Guns 12 | . . 9 3 AOE 8 | . . 8 . Classes Destroyed 7 | . . 7 . Worker 1 | . . 1 . Builder 3 | . . 2 1 Hauler 1 | . . 1 . Watcher 2 | . . 2 . Swarmer 4 | . . 4 . Grunt 10 | . . 10 . Sentry 6 | . . 3 3 Best Kill Streak 6 | . . 6 2 Combat Bots Only 5 | . . 5 2 Max Kills in Single Turn 4 | . . 4 1 Gunslinging . | . . . . Exploded 3 | . . 3 . Melee . | . . . . Uniques/NPCs Destroyed . | . . . . Combat | -11 -10 -9 -8 -------- Run | Yrd Mat Mat Mat Hostile Shots Fired 175 | . . 103 72 Missed 51 | . . 31 20 Damage Taken 1975 | . . 1186 789 Core 480 | . . 347 133 Absorbed by Shields . | . . . . Redirected to Shielding 204 | . . 47 157 Core Remaining (%) 71 | 100 100 13 . Volleys Fired 75 | . 4 39 32 Largest 2 | . 2 2 2 Hottest 122 | . 40 122 46 Shots Fired 135 | . 8 64 63 Gun 122 | . 8 51 63 Cannon . | . . . . Launcher 13 | . . 13 . Special . | . . . . Kinetic 94 | . 8 23 63 Thermal 28 | . . 28 . Explosive 13 | . . 13 . Electromagnetic . | . . . . Robot Hit Streak 13 | . 2 13 8 Robot Miss Streak 5 | . 3 2 5 Penetration Max . | . . . . Secondary Targets 2 | . . 2 . Max Gunslinging Chain 1 | . . 1 . Shots Hit Robots 81 | . 3 41 37 Core Hits 45 | . . 36 9 Critical Kills . | . . . . Critical Parts Destroyed . | . . . . Critical Strikes . | . . . . Melee Attacks 3 | . . 3 . Impact . | . . . . Slashing . | . . . . Piercing . | . . . . Sneak Attacks . | . . . . Combat Hostiles . | . . . . Follow-up Attacks . | . . . . Damage Inflicted 2033 | . 28 1533 472 Guns 1060 | . 28 562 470 Cannons . | . . . . Explosions 968 | . . 968 . Melee . | . . . . Ramming 5 | . . 3 2 Kinetic 688 | . 28 190 470 Thermal 372 | . . 372 . Explosive 968 | . . 968 . Electromagnetic . | . . . . Impact . | . . . . Slashing . | . . . . Piercing . | . . . . Highest Corruption 1 | . 1 . . Average Corruption 1 | . 1 . . Corruption Purged . | . . . . Corruption Blocked . | . . . . Effects 1 | . 1 . . Data Loss (minor) 1 | . 1 . . Overload Shots . | . . . . Overflow Damage 55 | . . 55 . Projectiles . | . . . . Explosions 55 | . . 55 . Melee . | . . . . Knockbacks . | . . . . Impact . | . . . . Kinetic . | . . . . Secondary . | . . . . Self-Inflicted Damage 103 | . . 103 . Shots 3 | . . 3 . Rammed . | . . . . Targets Rammed 2 | . . 1 1 Kicked 1 | . . 1 . Crushed 1 | . . . 1 Highest Temperature 388 | . . 388 7 Average Temperature 143 | . . 144 7 Received Heat Transfer 414 | . . 315 99 Siege Activations . | . . . . Robots Corrupted . | . . . . Combat Hostiles . | . . . . Parts Fried . | . . . . Impact Corruptions . | . . . . Robots Melted . | . . . . Combat Hostiles . | . . . . Parts Melted . | . . . . Heat Transferred 814 | . . 814 . Parts Sabotaged . | . . . . Parts Stolen . | . . . . Parts Stripped . | . . . . Power Chain Reactions . | . . . . Alert | -11 -10 -9 -8 ------- Run | Yrd Mat Mat Mat Peak Influence 546 | . 15 546 306 Initial 221 | . . 5 221 Average 175 | . 7 230 222 Maximum Alert Level 2 | . . 2 1 Low Security (%) 52 | 100 100 55 17 Level 1 35 | . . 14 82 Level 2 12 | . . 29 . Level 3 . | . . . . Level 4 . | . . . . Level 5 . | . . . . High Security . | . . . . Max Security . | . . . . Squads Dispatched 4 | . . 3 1 Investigation 1 | . . 1 . Extermination . | . . . . Reinforcement 3 | . . 2 1 Assault . | . . . . Garrison . | . . . . Intercept . | . . . . Searches Triggered . | . . . . Construction Impeded 1 | . . 1 . Haulers Reinforced . | . . . . Active Scanning Responses . | . . . . Cargo Convoy Interrupts . | . . . . Stealth | -11 -10 -9 -8 --------- Run | Yrd Mat Mat Mat Distress Signals 5 | . . 3 2 Communications Jammed . | . . . . Distress Signals . | . . . . Times Spotted 38 | . 3 27 8 Peak Tracking Total 8 | . 2 8 4 Tactical Retreats 4 | . . 3 1 Traps | -11 -10 -9 -8 ------- Run | Yrd Mat Mat Mat Traps Triggered 1 | . . 1 . Indirectly . | . . . . Trap Hack Attempts . | . . . . Triggered . | . . . . Disarmed . | . . . . Reprogrammed . | . . . . Reused . | . . . . Traps Extracted . | . . . . Installed . | . . . . Triggered . | . . . . Machines | -11 -10 -9 -8 ---------- Run | Yrd Mat Mat Mat Machines Disabled 2 | . . 2 . Max in Single Turn 1 | . . 1 . Machines Repaired . | . . . . Machines Dismantled . | . . . . Machines Sabotaged . | . . . . Overloaded Fab Kills . | . . . . Hacking | -11 -10 -9 -8 --------- Run | Yrd Mat Mat Mat Machines Accessed 6 | . 2 3 1 Terminals 5 | . 2 2 1 Fabricators . | . . . . Repair Stations . | . . . . Recycling Units . | . . . . Scanalyzers 1 | . . 1 . Garrison Access . | . . . . Total Hacks 14 | . 5 7 2 Successful 5 | . . 4 1 Failed 9 | . 5 3 1 Catastrophic 3 | . 1 1 1 Database Lockouts . | . . . . Manual 9 | . 4 4 1 Terminals 12 | . 5 5 2 Fabricators . | . . . . Repair Stations . | . . . . Recycling Units . | . . . . Scanalyzers 2 | . . 2 . Garrison Access . | . . . . Terminal Hacks 3 | . . 2 1 Emergency Access Points 1 | . . 1 . Alert Level 2 | . . 1 1 Fabricator Hacks . | . . . . Repair Station Hacks . | . . . . Recycling Unit Hacks . | . . . . Scanalyzer 2 | . . 2 . Insert Component 1 | . . 1 . Analyze 1 | . . 1 . Garrison Access Hacks . | . . . . Unauthorized Hacks . | . . . . Terminals . | . . . . Fabricators . | . . . . Repair Stations . | . . . . Recycling Units . | . . . . Scanalyzers . | . . . . Garrison Access . | . . . . Data Cores Recovered . | . . . . Used . | . . . . Hacking Detections 5 | . 2 2 1 Full Trace Events 2 | . 1 1 . Feedback Events 1 | . 1 . . Corruption 1 | . 1 . . Feedback Blocked . | . . . . Robot Schematics Acquired . | . . . . Robots Built . | . . . . Authchips . | . . . . Time . | . . . . Total Robot Build Rating . | . . . . Part Schematics Acquired 1 | . . 1 . Parts Built . | . . . . Authchips . | . . . . Time . | . . . . Total Part Build Rating . | . . . . Parts Repaired . | . . . . Time . | . . . . Parts Recycled . | . . . . Recycled Matter . | . . . . Retrieved Matter . | . . . . Retrieved Components . | . . . . Parts Scanalyzed 1 | . . 1 . Part Schematics Acquired 1 | . . 1 . Parts Damaged . | . . . . Bothacking | -11 -10 -9 -8 ------------ Run | Yrd Mat Mat Mat Used RIF Installer . | . . . . Robots Hacked 1 | . . 1 . Non-combat . | . . . . Combat 1 | . . 1 . Robot Hacks Applied 1 | . . 1 . parse_system 1 | . . 1 . Relay Couplers Released . | . . . . Fabnet Peak Effective % . | . . . . Robots Rewired . | . . . . Allies Hacked . | . . . . Hacks Repelled . | . . . . Allies | -11 -10 -9 -8 -------- Run | Yrd Mat Mat Mat Total Allies . | . . . . Largest Group . | . . . . Highest-Rated Group . | . . . . Highest-Rated Ally . | . . . . Total Orders . | . . . . Ally Attacks . | . . . . Total Damage . | . . . . Kills . | . . . . Allies Corrupted . | . . . . Allies Melted . | . . . . Intel | -11 -10 -9 -8 ------- Run | Yrd Mat Mat Mat Robot Analysis Total . | . . . . Derelict Logs Recovered . | . . . . Drone Launches . | . . . . Drone Recoveries . | . . . . Exploration | -11 -10 -9 -8 ------------- Run | Yrd Mat Mat Mat Turns Passed 1384 | 46 278 575 485 Spaces Moved 877 | 41 217 411 208 Core 40 | 21 . 15 4 Treads 87 | . . 13 74 Legs 391 | 20 217 154 . Wheels . | . . . . Hover 359 | . . 229 130 Flight . | . . . . Fastest Speed 50 | 50 120 52 145 Average Speed 118 | 84 120 92 173 Slowest Speed 350 | 120 120 250 350 Overloaded Moves . | . . . . Propulsion Burnouts . | . . . . Robots Hopped . | . . . . Cave-ins Triggered . | . . . . Exploration Rate (%) 23 | 3 39 31 19 Regions Visited 3 Branch Regions . Pre-discovered Areas . | . . . . Known Exits Taken . | . . . . Unknown Exits Taken 3 | 1 1 1 . Scrap Searched . | . . . . Spaces Dug . | . . . . Terrain Destroyed 89 | . . 89 . Melee . | . . . . Projectile . | . . . . AOE 89 | . . 89 . Terrain Rammed . | . . . . Walls Destroyed . | . . . . Machines Disabled . | . . . . Actions | -11 -10 -9 -8 --------- Run | Yrd Mat Mat Mat Total 1082 | 52 227 536 267 Wait 39 | . 3 36 . Move 874 | 40 216 410 208 Hop . | . . . . Pick Up 33 | 6 3 15 9 Fast Attach . | . . . . Attach 25 | 6 1 8 10 Detach 2 | . . 1 1 Swap 21 | . . 16 5 Drop 8 | . . 7 1 Fire 75 | . 4 39 32 Melee 3 | . . 3 . Ram . | . . . . Kick 1 | . . 1 . Crush 1 | . . . 1 Escape Stasis . | . . . . Rewire . | . . . . Trap . | . . . . Miscellaneous . | . . . . Route ------- -11/Scrapyard -10/Materials -9/Materials -8/Materials History --------- Turn | Location | Event 2 | -11/Scrapyard | Met Revision 17 8 | -11/Scrapyard | Discovered new exit (range 14) 47 | -11/Scrapyard | Entered Materials 234 | -10/Materials | Discovered new exit (range 6) 315 | -10/Materials | Build established: Mutant 325 | -10/Materials | Entered another Materials area 325 | -9/Materials | Evolved 2 slots: Propulsion x1, Utility x1 851 | -9/Materials | Discovered new exit (range 18) 874 | -9/Materials | Core integrity fell below 50% 900 | -9/Materials | Entered another Materials area 900 | -8/Materials | Evolved 2 slots: Propulsion x1, Utility x1 917 | -8/Materials | Lost 4 parts (1p1n2w) 1385 | -8/Materials | Self-destructed Last Messages --------------- R-06 Scavenger collects Beam Rifle. R-06 Scavenger collects Lgt. Treads. Crushed U-05 Engineer. U-05 Engineer destroyed. Acquired 2 matter. Penetrated by Slug. Imp. Propulsion Shielding destroyed. Slug penetrates Wall. K-01 Serf collects debris. Penetrated by Slug. K-01 Serf collects debris. Slug penetrates Wall. Penetrated by Slug. M-13 Machinist repairs H-55 Commando. Penetrated by Slug. M-13 Machinist repairs H-55 Commando. Slug penetrates Wall. Penetrated by Slug. Slug penetrates H-55 Commando. Slug penetrates Wall. Map ----- +----------------------------------------------------+ | ??????????????????????? ???????????? | | ??????????????????????? ???????????? | | ??????????????????????? ???????????? | | ??????????????????????? ???????????? | | ??????????????????????? ???????????? | | ??????????????????????? ???????????? | | ???????????????????????+##?????????? | | ??????????????????????? ?????????? | | ???????????????????????" ?????????? | | ??????????????????????? ?????????? | | ??????????????????????? ] ?????????? | | ??????????????????????? h ?????????? | | ???????????????????????# #?????????? | | ???????????????????????#%#?????????? | | ???????????????????????#m#??######## | | ???????????????????????#h#??# ! # | | ???????????????????????#!#??# !# | | ???????????????????????# #### [ # | | ???????????????????????#!| + # | | ???????????????????????#== # "T" # | | ???????????????????????# # # | | ???????????????????????# ######## | | ???????????????????????# #??????? | | ???????????????????????# #??????? | | ???????????????????????# #??????? | | ???????????????????? ??# @ #??????? | | ???????????????????? ??# #??????? | | ???????????????????# ??# #??????? | | ???????????????????# ??# #??????? | | ??????????????????# [## ####???? | | ???????????# + #???? | | ????????????""" # ## ##### #???? | | ??????????????????## ??# #???? #???? | | ???????????????????# ###+####??#???? | | ???????????????????# # #??????? | | ???????????????????# # #??????? | | ???????????????????# # #??????? | | ???????????????????# # #??????? | | ???????????????????# + #??????? | | ???????????????????# # #??????? | | ??????????########## ####+####+##### | | ??????????# # #??# #?# # | | ??????????# """ # #??# #?# """ # | | ??????????# """ # #### #?# """ # | | ??????????# """ # ## #?# """ # | | ??????????# + ## ### # | | ??????????# """ # ## + """ # | | ??????????# """ # ###### """ # | | ??????????# """ # ###### """ # | | ??????????# # #! # | +----------------------------------------------------+ Best States ------------- Heat Dissipation 41 Energy Generation 14 Energy Capacity 280 Matter Stores 300 Matter Capacity 300 Sight Range 20 Terrain Scan Density 10 Power Shielding 33 Propulsion Shielding 66 Weapon Shielding 66 Evasion (%) 55 Recoil Reduction 4 Item Schematics ----------------- Prc. Beam Rifle | -9/Materials | Scanalyzed Robot Schematics ------------------ None Fabricated ------------ Nothing Alien Tech Used ----------------- None Achievements -------------- Let's See Who's Tougher Challenges ------------ None Game ------ Seed CoolantTowerBeamcaster Manual? 0 Play Time 00:23:16 Cumulative 3.8 hours Start 2024.10.23 @ 14:15:03 End 2024.10.24 @ 00:33:06 Sessions 2 Manual Loads 0 Difficulty Rogue Special Mode None Game No. 9 Rogue 9 Adventurer 0 Explorer 0 Win Type - Total 0 Types 0/0/0/0/0/0/0/0/0 Lore% 3 Gallery% 9 Achievement% 10 Wizard Run 0 Options --------- Layout 1 ASCII 0 Keyboard 0 Movement Mouse Keybinds 0 Fullscreen 1 Font 48/SmallcapsGlow++ Map View 50x35 Zoom Use 0% Tactical HUD 0 Map Filters NONE Filters NONE Steam 1 RUN: 7f4cc95f-7d52-4d6c-ad07-72b520408254